fUSD/lending_fUSD_20260127
["ID","MTS","AMOUNT","RATE_DAILY","PERIOD"]
[403698797,1769490654655,-518.97539219,0.00032876,30]
[403698798,1769490654665,-385.66890011,0.00032876,2]
[403698799,1769490654675,-500.0,0.00032876,2]
[403698800,1769490654684,-255.56110685,0.00032876,2]
[403698801,1769490654693,-370.32325079,0.00032876,2]
[403698802,1769490654703,-500.0,0.00032876,2]
[403698803,1769490654713,-500.0,0.00032876,2]
[403698804,1769490654723,-562.22708559,0.00032876,2]
[403698805,1769490654732,-500.0,0.00032876,2]
[403698806,1769490654741,-424.10356855,0.00032876,2]
[403698807,1769490654750,-400.0,0.00032876,2]
[403698808,1769490654761,-500.0,0.00032876,2]
[403698809,1769490654771,-500.0,0.00032876,2]
[403698810,1769490654779,-500.0,0.00032876,2]
[403698811,1769490654788,-500.0,0.00032876,2]
[403698812,1769490654799,-500.0,0.00032876,2]
[403698813,1769490654807,-500.0,0.00032876,2]
[403698814,1769490654816,-500.0,0.00032876,2]
[403698815,1769490654825,-500.0,0.00032876,2]
[403698816,1769490654835,-500.0,0.00032876,2]
[403698817,1769490654851,-485.16138863,0.00032876,2]
[403698818,1769490654860,-382.4857317,0.00032876,2]
[403698819,1769490654870,-386.5079861,0.00032876,2]
[403698821,1769490654880,-500.0,0.00032876,2]
[403698822,1769490654892,-500.0,0.00032876,2]
[403698823,1769490654901,-500.0,0.00032876,2]
[403698824,1769490654910,-500.0,0.00032876,2]
[403698825,1769490654919,-500.0,0.00032876,2]
[403698826,1769490654929,-500.0,0.00032876,2]
[403698827,1769490654938,-500.0,0.00032876,2]
[403698828,1769490654947,-500.0,0.00032876,2]
[403698829,1769490654956,-500.0,0.00032876,2]
[403698830,1769490654966,-500.0,0.00032876,2]
[403698831,1769490654975,-500.0,0.00032876,2]
[403698832,1769490654984,-500.0,0.00032876,2]
[403698833,1769490654993,-500.0,0.00032876,2]
[403698834,1769490655003,-500.0,0.00032876,2]
[403698835,1769490655012,-500.0,0.00032876,2]
[403698836,1769490655023,-500.0,0.00032876,2]
[403698837,1769490655032,-500.0,0.00032876,2]
[403698838,1769490655041,-500.0,0.00032876,2]
[403698839,1769490655050,-500.0,0.00032876,2]
[403698840,1769490655059,-500.0,0.00032876,2]
[403698841,1769490655068,-431.01431343,0.00032876,2]
[403698842,1769490655077,-500.0,0.00032876,2]
[403698843,1769490655086,-500.0,0.00032876,2]
[403698844,1769490655095,-500.0,0.00032876,2]
[403698845,1769490655104,-500.0,0.00032876,2]
[403698846,1769490655114,-500.0,0.00032876,2]
[403698847,1769490655123,-500.0,0.00032876,2]
[403698848,1769490655133,-500.0,0.00032876,2]
[403698849,1769490655142,-500.0,0.00032876,2]
[403698850,1769490655152,-500.0,0.00032876,2]
[403698851,1769490655163,-500.0,0.00032876,2]
[403698852,1769490655172,-500.0,0.00032876,2]
[403698853,1769490655181,-500.0,0.00032876,2]
[403698854,1769490655191,-500.0,0.00032876,2]
[403698855,1769490655200,-500.0,0.00032876,2]
[403698856,1769490655209,-500.0,0.00032876,2]
[403698857,1769490655218,-150.32939971,0.00032876,2]
[403698858,1769490655228,-1000.0,0.00032877,7]
[403698859,1769490655236,-1225.03,0.00032877,2]
[403698860,1769490655245,-344.36,0.00032877,2]
[403698861,1769490655255,-176.29315304,0.00032877,2]
[403698862,1769490655264,-500.0,0.00032877,2]
[403698863,1769490655274,-500.0,0.00032877,2]
[403698864,1769490655283,-300.0,0.00032877,5]
[403698865,1769490655293,-500.0,0.00032877,2]
[403698866,1769490655303,-500.0,0.00032877,5]
[403698867,1769490655325,-500.0,0.00032877,2]
[403698868,1769490655336,-500.0,0.00032877,2]
[403698869,1769490655346,-353.29077986,0.00032877,2]
[403698870,1769490655356,-500.0,0.00032877,7]
[403698871,1769490655365,-485.78740996,0.00032877,7]
[403698872,1769490655375,-500.0,0.00032877,7]
[403698873,1769490655386,-500.0,0.00032877,7]
[403698874,1769490655395,-500.0,0.00032877,7]
[403698875,1769490655404,-500.0,0.00032877,7]
[403698876,1769490655416,-372.08668961,0.00032877,7]
[403698877,1769490655425,-500.0,0.00032877,7]
[403698878,1769490655435,-500.0,0.00032877,7]
[403698879,1769490655445,-500.0,0.00032877,7]
[403698880,1769490655454,-2043.5822,0.00032899,120]
[403698881,1769490655463,-3969.67002456,0.00033,13]
[403698882,1769490655473,-51248.59578584,0.00033,2]
[403698883,1769490655482,-26353.11519874,0.00033,2]
[403698884,1769490655491,-153.3821731,0.00033,2]
[403698885,1769490655500,-2130.62,0.00033,14]
[403698886,1769490655510,-3528.11,0.00033,14]
[403698887,1769490655521,-500.0,0.00033,64]
[403698888,1769490655530,-500.0,0.00033,120]
[403698889,1769490655539,-557.549348,0.00033,14]
[403698890,1769490655548,-700.0,0.00033044,14]
[403698891,1769490655558,-4551.14,0.000331,2]
[403698892,1769490655570,-1000.0,0.00033151,7]
[403698893,1769490655580,-150.00414663,0.00033204,49]
[403698894,1769490655590,-498.91187858,0.00033278,2]
[403698895,1769490655599,-864.78058953,0.00033284,2]
[403698896,1769490655610,-3543.0,0.00033284,2]
[403698897,1769490655621,-195.14656487,0.00033284,2]
[403698898,1769490655631,-191.6,0.000334,8]
[403698899,1769490655640,-1000.0,0.00033425,7]
[403698900,1769490655650,-1000.0,0.00033448,2]
[403698901,1769490655659,-1000.0,0.00033448,2]
[403698902,1769490655670,-1000.0,0.00033448,2]
[403698903,1769490655680,-1100.39183996,0.00033448,2]
[403698904,1769490655691,-1000.0,0.0003347,2]
[403698905,1769490655700,-1000.0,0.0003347,2]
[403698906,1769490655710,-1000.0,0.0003347,2]
[403698907,1769490655720,-1000.0,0.0003347,2]
[403698908,1769490655730,-1000.0,0.0003347,2]
[403698909,1769490655739,-1210.08901217,0.000335,2]
[403698910,1769490655748,-503.0,0.000335,16]
[403698911,1769490655759,-151.57,0.00033542,2]
[403698912,1769490655767,-150.0,0.00033542,2]
[403698913,1769490655778,-150.0,0.00033542,2]
[403698914,1769490655788,-900.0,0.00033592,14]
[403698915,1769490655798,-1000.0,0.00033699,7]
[403698916,1769490655807,-600.0,0.00033699,5]
[403698917,1769490655818,-1000.0,0.00033864,2]
[403698918,1769490655827,-151.82160269,0.00033897,60]
[403698919,1769490655836,-5052.12,0.000339,2]
[403698920,1769490655845,-744.25254561,0.00033939,60]
[403698921,1769490655855,-1000.0,0.00033973,7]
[403698922,1769490655864,-1913.15065309,0.00034,2]
[403698923,1769490655874,-3525.89833751,0.00034,7]
[403698924,1769490655884,-178.86909889,0.00034,30]
[403698925,1769490655893,-200.0,0.00034,120]
[403698926,1769490655902,-500.0,0.00034,65]
[403698927,1769490655911,-300.0,0.00034,120]
[403698929,1769490655921,-503.0,0.00034146,17]
[403698930,1769490655930,-4551.14,0.000342,2]
[403698931,1769490655939,-1000.0,0.00034247,7]
[403698932,1769490655949,-5052.12,0.000343,2]
[403698933,1769490655957,-808.81,0.00034319,30]
[403698934,1769490655968,-1300.0,0.00034414,14]
[403698935,1769490655977,-1729.14135792,0.0003449,2]
[403698936,1769490655987,-160.0,0.000345,2]
[403698937,1769490655996,-5000.0,0.000345,14]
[403698938,1769490656006,-1232.58,0.000345,60]
[403698939,1769490656015,-2000.0,0.000345,2]
[403698940,1769490656024,-1000.0,0.00034521,7]
[403698941,1769490656035,-150.0,0.00034521,2]
[403698942,1769490656045,-900.0,0.00034521,5]
[403698943,1769490656054,-150.00414673,0.00034572,53]
[403698944,1769490656064,-916.0,0.00034641,2]
[403698945,1769490656073,-1204.0,0.00034641,2]
[403698946,1769490656083,-4831.0,0.00034641,2]
[403698947,1769490656092,-6570.0,0.00034641,2]
[403698948,1769490656101,-567.0,0.00034641,2]
[403698949,1769490656111,-517.37161808,0.00034647,2]
[403698950,1769490656120,-700.0,0.00034688,14]
[403698952,1769490656129,-5052.12,0.000347,2]
[403698953,1769490656138,-3477.0,0.00034734,2]
[403698954,1769490656148,-1408.0,0.00034734,2]
[403698955,1769490656157,-1333.0,0.00034734,2]
[403698956,1769490656167,-615.0,0.00034734,2]
[403698957,1769490656176,-1269.0,0.00034734,2]
[403698958,1769490656185,-184.0,0.00034734,2]
[403698960,1769490656195,-503.0,0.00034792,17]
[403698961,1769490656204,-1000.0,0.00034795,7]
[403698962,1769490656214,-528.94139888,0.00034849,120]
[403698963,1769490656223,-1000.0,0.00034864,2]
[403698964,1769490656232,-210.0,0.0003488,30]
[403698965,1769490656241,-396.3916255,0.0003488,120]
[403698966,1769490656250,-3589.60000629,0.000349,2]
[403698967,1769490656259,-3840.97315241,0.000349,24]
[403698968,1769490656269,-1915.08271777,0.00035,2]
[403698969,1769490656278,-161.17974342,0.00035,2]
[403698970,1769490656287,-151.0,0.00035,14]
[403698971,1769490656296,-2130.62,0.00035,14]
[403698972,1769490656304,-3528.11,0.00035,14]
[403698973,1769490656316,-7826.93,0.00035,14]
[403698974,1769490656326,-189.11157078,0.00035,3]
[403698975,1769490656336,-2000.0,0.00035,30]
[403698976,1769490656347,-150.0,0.00035,120]
[403698977,1769490656357,-239.7,0.00035,2]
[403698978,1769490656366,-200.0,0.00035,120]
[403698979,1769490656377,-500.0,0.00035,66]
[403698981,1769490656387,-500.0,0.00035,120]
[403698982,1769490656396,-169.0,0.00035,30]
[403698983,1769490656406,-7529.6759676,0.00035,10]
[403698984,1769490656416,-100000.0,0.00035,6]
[403698985,1769490656425,-806.00995813,0.00035,3]
[403698986,1769490656435,-1000.0,0.00035068,7]
[403698987,1769490656444,-5052.12,0.000351,2]
[403698988,1769490656454,-900.0,0.00035236,14]
[403698990,1769490656463,-2500.0,0.000353,14]
[403698991,1769490656472,-1000.0,0.00035342,7]
[403698992,1769490656482,-154.25,0.00035342,91]
[403698993,1769490656491,-1200.0,0.00035342,5]
[403698994,1769490656501,-503.0,0.00035438,18]
[403698995,1769490656511,-237.19753309,0.00035589,120]
[403698996,1769490656520,-3406.9,0.00035589,120]
[403698997,1769490656530,-477.26189393,0.00035589,120]
[403698998,1769490656539,-204.54081168,0.00035589,120]
[403698999,1769490656549,-320.99513267,0.00035589,120]
[403699000,1769490656558,-2597.3420424,0.00035589,120]
[403699001,1769490656567,-387.79476707,0.000356,30]
[403699002,1769490656576,-157618.12083706,0.0003561,2]
[403699003,1769490656586,-1999.0,0.00035616,120]
[403699004,1769490656595,-1000.0,0.00035616,7]
[403699005,1769490656605,-500.0,0.00035616,7]
[403699006,1769490656614,-500.0,0.00035616,7]
[403699007,1769490656623,-500.0,0.00035616,7]
[403699008,1769490656633,-263.19181748,0.00035616,7]
[403699009,1769490656643,-195.91020194,0.00035616,7]
[403699010,1769490656652,-500.0,0.00035616,7]
[403699011,1769490656663,-500.0,0.00035616,7]
[403699012,1769490656673,-274.09283959,0.00035616,7]
[403699013,1769490656682,-1225.03,0.00035616,2]
[403699014,1769490656692,-600.0,0.00035616,2]
[403699015,1769490656701,-1000.0,0.00035864,2]
[403699016,1769490656710,-179.62742,0.00035888,30]
[403699017,1769490656719,-1000.0,0.0003589,14]
[403699018,1769490656729,-886.32653699,0.000359,2]
[403699019,1769490656738,-182.46638006,0.0003594,57]
[403699020,1769490656749,-725.32085997,0.00035999,7]
[403699021,1769490656759,-522.73,0.00036,30]
[403699023,1769490656768,-147335.61545076,0.00036,2]
[403699024,1769490656778,-10843.4974689,0.00036,2]
[403699025,1769490656789,-161753.09349794,0.00036,10]
[403699026,1769490656800,-87019.52821705,0.00036,2]
[403699027,1769490656809,-1019.0,0.00036,30]
[403699028,1769490656820,-200.0,0.00036,120]
[403699029,1769490656829,-500.0,0.00036,67]
[403699031,1769490656838,-300.0,0.00036,120]
[403699032,1769490656848,-593.0,0.00036,2]
[403699033,1769490656857,-536.51436795,0.00036016,2]
[403699034,1769490656867,-896.77747135,0.00036023,2]
[403699035,1769490656876,-3543.0,0.00036023,2]
[403699036,1769490656886,-5000.0,0.00036029,10]
[403699037,1769490656895,-1528.62,0.00036029,10]
[403699039,1769490656905,-5000.0,0.00036034,10]
[403699040,1769490656914,-5000.0,0.00036039,10]
[403699041,1769490656925,-2531.02,0.00036046,10]
[403699042,1769490656935,-1300.0,0.00036058,14]
[403699043,1769490656944,-5000.0,0.00036068,10]
[403699044,1769490656954,-503.0,0.00036083,18]
[403699045,1769490656964,-179.62742,0.00036088,30]
[403699046,1769490656975,-919.53,0.000361,12]
[403699048,1769490656984,-5000.0,0.00036117,10]
[403699049,1769490656994,-3543.89,0.00036134,10]
[403699050,1769490657003,-5000.0,0.00036137,10]
[403699051,1769490657013,-649.50276679,0.00036139,2]
[403699052,1769490657023,-1000.0,0.00036164,14]
[403699053,1769490657032,-1500.0,0.00036164,5]
[403699055,1769490657042,-600.0,0.00036164,2]
[403699056,1769490657051,-25000.0,0.00036181,10]
[403699057,1769490657062,-1631.97,0.000362,30]
[403699058,1769490657071,-25000.0,0.00036221,10]
[403699059,1769490657081,-5000.0,0.00036239,10]
[403699060,1769490657090,-179.62742,0.00036288,30]
[403699061,1769490657100,-2504.3,0.00036327,10]
[403699062,1769490657110,-700.0,0.00036332,14]
[403699063,1769490657119,-5000.0,0.00036341,10]
[403699064,1769490657129,-4023.51,0.00036369,10]
[403699065,1769490657139,-5000.0,0.00036375,10]
[403699066,1769490657149,-25000.0,0.00036399,10]
[403699067,1769490657158,-5000.0,0.00036411,10]
[403699069,1769490657168,-2531.03,0.00036415,10]
[403699070,1769490657177,-5000.0,0.0003642,10]
[403699071,1769490657187,-25000.0,0.00036421,10]
[403699072,1769490657196,-1000.0,0.00036438,14]
[403699073,1769490657205,-179.62742,0.00036488,30]
[403699074,1769490657215,-1683.07,0.000365,10]
[403699075,1769490657225,-5000.0,0.00036523,10]
[403699076,1769490657234,-2571.34,0.00036554,10]
[403699077,1769490657244,-150.0,0.00036555,2]
[403699078,1769490657253,-5000.0,0.00036556,10]
[403699079,1769490657263,-5000.0,0.00036561,10]
[403699080,1769490657272,-5000.0,0.00036562,10]
[403699081,1769490657282,-5000.0,0.00036564,10]
[403699082,1769490657292,-5000.0,0.00036577,10]
[403699083,1769490657302,-5000.0,0.00036578,10]
[403699084,1769490657316,-5000.0,0.00036663,10]
[403699085,1769490657325,-2504.3,0.00036666,10]
[403699086,1769490657335,-25000.0,0.00036669,10]
[403699087,1769490657344,-2500.0,0.00036682,10]
[403699088,1769490657355,-179.62742,0.00036688,30]
[403699089,1769490657364,-5000.0,0.00036705,10]
[403699090,1769490657374,-315.67430065,0.00036712,120]
[403699091,1769490657384,-1000.0,0.00036712,14]
[403699092,1769490657394,-600.0,0.00036712,2]
[403699093,1769490657404,-169.0,0.00036713,30]
[403699094,1769490657413,-5000.0,0.00036714,10]
[403699095,1769490657427,-522.73,0.0003672,30]
[403699096,1769490657437,-503.0,0.00036729,19]
[403699097,1769490657448,-5000.0,0.00036773,10]
[403699098,1769490657457,-25000.0,0.00036784,10]
[403699099,1769490657467,-1608.86326706,0.000368,2]
[403699100,1769490657476,-1952.76339352,0.000368,2]
[403699101,1769490657486,-4925.63,0.00036806,10]
[403699102,1769490657495,-5000.0,0.00036815,10]
[403699103,1769490657505,-1145.46130174,0.00036832,10]
[403699106,1769490658501,-1361.96869826,0.00036832,10]
[403699107,1769490658510,-1650.65479615,0.00036847,10]
[403699108,1769490658523,-391.98548749,0.00036847,10]
[403699109,1769490658563,-464.78971636,0.00036847,10]
[403699110,1769490658573,-99.49650674,0.00036864,2]
[403699111,1769490660323,-1.7e-07,0.00036864,2]
[403699112,1769490660337,-900.50349309,0.00036864,2]
[403699113,1769490660346,-2571.33,0.00036875,10]
[403699114,1769490660357,-900.0,0.0003688,14]
[403699115,1769490660367,-598.758,0.00036888,7]
[403699116,1769490660377,-179.62742,0.00036888,30]
[403699117,1769490660387,-210.0,0.0003689,30]
[403699118,1769490660397,-3499.43062964,0.0003691,2]
[403699119,1769490660878,469.0,0.000113,5]
[403699120,1769490661010,-161.83,0.00015219,2]
[403699121,1769490661029,-500.0,0.00015337,2]
[403699122,1769490661040,-500.0,0.00015337,2]
[403699123,1769490661050,-500.0,0.00015337,2]
[403699124,1769490661060,-500.0,0.00015337,2]
[403699125,1769490661069,-4425.946033,0.0003691,2]
[403699126,1769490661081,-857.72483782,0.0003691,2]
[403699127,1769490661105,-500.0,0.00015337,2]
[403699128,1769490661114,-950.46517221,0.0003691,2]
[403699129,1769490661141,-500.0,0.00015436,2]
[403699130,1769490661151,-180.76275655,0.0003691,2]
[403699131,1769490661171,-434.44633504,0.00015337,2]
[403699132,1769490661190,-66.89256255,0.00015337,2]
[403699133,1769490661200,-707.58654139,0.0003691,2]
[403699137,1769490662547,250.0,0.0001243,2]
[403699138,1769490662655,250.0,0.00013259,2]
[403699139,1769490662749,250.0,0.00014522,2]
[403699140,1769490663363,195.0,0.00014522,2]
[403699284,1769490714233,223.090002,0.00015138,2]
[403699416,1769490768196,161.29910396,0.00015118,2]
[403699438,1769490774232,161.29910396,0.00015128,2]
[403699453,1769490780151,161.29910396,0.00015138,2]
[403699637,1769490964164,6612.95529468,0.00015138,2]
[403699797,1769491184227,768.37,0.00019178,30]
[403699800,1769491214083,2680.06739144,0.00015138,2]
[403699801,1769491214109,9811.50746673,0.00015138,2]
[403699827,1769491292912,188.50253327,0.00014914,2]
[403699828,1769491293306,1672.65146673,0.00014914,2]
[403699829,1769491293355,210.339,0.00014914,2]
[403699837,1769491337906,269.04210316,0.00015138,2]
[403699840,1769491350890,5951.65976514,0.00015138,2]
[403699917,1769491712473,3779.3081317,0.00015118,2]
[403699918,1769491712499,10000.01,0.00015118,2]
[403699919,1769491712524,10000.01,0.00015118,2]
[403699920,1769491712549,10000.01,0.00015118,2]
[403699921,1769491712574,10000.01,0.00015118,2]
[403699922,1769491712598,10000.01,0.00015118,2]
[403699923,1769491712627,10000.01,0.00015118,2]
[403699925,1769491712653,10000.01,0.00015118,2]
[403699926,1769491712679,10000.01,0.00015118,2]
[403699927,1769491712706,10000.01,0.00015118,2]
[403699930,1769491713804,-191.4647803,0.00015118,2]
[403699939,1769491728607,-463.83968361,0.00015118,2]
[403699946,1769491733426,-225.66994004,0.00015118,2]
[403699947,1769491735048,-300.0,0.00015118,2]
[403699948,1769491736954,-300.0,0.00015118,2]
[403699950,1769491739238,-254.36856334,0.00015118,2]
[403699951,1769491740616,5356.49378868,0.00015038,2]
[403699952,1769491741283,300.0,0.00015117,2]
[403699953,1769491741494,-209.78581975,0.00015118,2]
[403699954,1769491744628,-834.03947645,0.00015118,2]
[403699955,1769491746710,-217.50417788,0.00015118,2]
[403699956,1769491749371,-311.9700595,0.00015118,2]
[403699957,1769491752063,-300.0,0.00015118,2]
[403699958,1769491754920,-620.56810071,0.00015118,2]
[403699959,1769491758095,-250.0,0.00015118,2]
[403699996,1769491801214,300.0,0.00015117,2]
[403699997,1769491801245,1200.0,0.00015117,2]
[403699998,1769491801294,181.0,0.00015117,2]
[403699999,1769491801988,243.0,0.00015117,2]
[403700000,1769491802803,300.0,0.00015117,2]
[403700001,1769491804370,-260.94893944,0.00015118,2]
[403700002,1769491806572,-528.48318036,0.00015118,2]
[403700003,1769491808834,-253.16067858,0.00015118,2]
[403700004,1769491810843,-235.34687346,0.00015118,2]
[403700005,1769491813077,-174.33941195,0.00015118,2]
[403700006,1769491814792,431.3,0.00015108,2]
[403700007,1769491815125,431.3,0.00015108,2]
[403700008,1769491820852,500.0,0.00015117,2]
[403700009,1769491821086,225.62412018,0.00015117,2]
[403700013,1769491831726,-289.14843026,0.00015118,2]
[403700015,1769491831738,-3041.31296243,0.00015118,2]
[403700018,1769491831785,-2277.12736625,0.00015118,2]
[403700019,1769491831796,-1614.4797699,0.00015118,2]
[403700020,1769491831842,-22741.25051768,0.00015118,2]
[403700021,1769491831899,-341.348914,0.00015118,2]
[403700023,1769491831967,-2413.61553984,0.00015118,2]
[403700160,1769491837845,-734.53667744,0.00015118,2]
[403700161,1769491837957,-1906.50113006,0.00015118,2]
[403700164,1769491838087,-4888.76124991,0.00015118,2]
[403700288,1769491840027,-860041.02962516,0.00015118,2]
[403700289,1769491840036,-33261.7219,0.00015118,2]
[403700290,1769491840045,-4317.5585,0.00015118,2]
[403700291,1769491840055,-195.0,0.00015121,2]
[403700292,1769491840064,-346.23098637,0.00015121,2]
[403700293,1769491840073,-278.40012607,0.00015123,2]
[403700294,1769491840084,-300.0,0.00015128,2]
[403700295,1769491840093,-925.51190611,0.00015137,2]
[403700296,1769491840103,-11242.41737229,0.00015138,2]
[403700297,1769491840112,-500.0,0.00015217,2]
[403700298,1769491840121,-500.0,0.00015217,2]
[403700299,1769491840131,-500.0,0.00015217,2]
[403700300,1769491840140,-165.99687138,0.00015217,2]
[403700301,1769491840150,-500.0,0.00015217,2]
[403700302,1769491840160,-500.0,0.00015217,2]
[403700303,1769491840172,-500.0,0.00015217,2]
[403700304,1769491840182,-500.0,0.00015217,2]
[403700305,1769491840191,-500.0,0.00015217,2]
[403700306,1769491840201,-500.0,0.00015217,2]
[403700307,1769491840211,-500.0,0.00015217,2]
[403700308,1769491840220,-500.0,0.00015217,2]
[403700309,1769491840230,-519.03184952,0.00015217,2]
[403700310,1769491840239,-500.0,0.00015217,2]
[403700311,1769491840248,-500.0,0.00015217,2]
[403700312,1769491840257,-500.0,0.00015217,2]
[403700313,1769491840267,-500.0,0.00015217,2]
[403700314,1769491840277,-500.0,0.00015217,2]
[403700315,1769491840287,-500.0,0.00015217,2]
[403700316,1769491840296,-500.0,0.00015217,2]
[403700317,1769491840305,-500.0,0.00015217,2]
[403700318,1769491840315,-500.0,0.00015217,2]
[403700319,1769491840324,-500.0,0.00015217,2]
[403700320,1769491840334,-500.0,0.00015217,2]
[403700321,1769491840343,-500.0,0.00015217,2]
[403700322,1769491840353,-150.0,0.00015217,2]
[403700323,1769491840362,-320.03049868,0.00015217,2]
[403700324,1769491840372,-193.82783315,0.00015217,2]
[403700325,1769491840382,-500.0,0.00015217,2]
[403700326,1769491840392,-500.0,0.00015217,2]
[403700327,1769491840402,-500.0,0.00015217,2]
[403700328,1769491840414,-500.0,0.00015217,2]
[403700329,1769491840423,-500.0,0.00015217,2]
[403700330,1769491840432,-500.0,0.00015217,2]
[403700331,1769491840442,-500.0,0.00015217,2]
[403700332,1769491840451,-500.0,0.00015217,2]
[403700334,1769491840461,-500.0,0.00015217,2]
[403700336,1769491840471,-500.0,0.00015217,2]
[403700337,1769491840480,-500.0,0.00015217,2]
[403700339,1769491840489,-500.0,0.00015217,2]
[403700340,1769491840499,-500.0,0.00015217,2]
[403700341,1769491840509,-630.84140267,0.00015217,2]
[403700342,1769491840519,-500.0,0.00015217,2]
[403700343,1769491840529,-500.0,0.00015217,2]
[403700344,1769491840538,-500.0,0.00015217,2]
[403700345,1769491840547,-500.0,0.00015217,2]
[403700347,1769491840557,-500.0,0.00015217,2]
[403700349,1769491840566,-500.0,0.00015217,2]
[403700350,1769491840575,-500.0,0.00015217,2]
[403700352,1769491840584,-500.0,0.00015217,2]
[403700353,1769491840593,-500.0,0.00015217,2]
[403700354,1769491840602,-500.0,0.00015217,2]
[403700355,1769491840613,-500.0,0.00015217,2]
[403700356,1769491840622,-500.0,0.00015217,2]
[403700357,1769491840631,-500.0,0.00015217,2]
[403700358,1769491840641,-500.0,0.00015217,2]
[403700359,1769491840653,-500.0,0.00015217,2]
[403700360,1769491840666,-500.0,0.00015217,2]
[403700361,1769491840675,-500.0,0.00015217,2]
[403700362,1769491840685,-500.0,0.00015217,2]
[403700363,1769491840695,-500.0,0.00015217,2]
[403700364,1769491840704,-500.0,0.00015217,2]
[403700365,1769491840714,-500.0,0.00015217,2]
[403700366,1769491840723,-500.0,0.00015217,2]
[403700367,1769491840733,-500.0,0.00015217,2]
[403700368,1769491840743,-500.0,0.00015217,2]
[403700369,1769491840753,-500.0,0.00015217,2]
[403700370,1769491840762,-500.0,0.00015217,2]
[403700371,1769491840772,-500.0,0.00015217,2]
[403700372,1769491840781,-500.0,0.00015217,2]
[403700373,1769491840791,-500.0,0.00015217,2]
[403700374,1769491840801,-500.0,0.00015217,2]
[403700375,1769491840810,-500.0,0.00015217,2]
[403700376,1769491840820,-500.0,0.00015217,2]
[403700377,1769491840829,-500.0,0.00015217,2]
[403700378,1769491840838,-500.0,0.00015217,2]
[403700379,1769491840847,-500.0,0.00015217,2]
[403700380,1769491840857,-360.07270988,0.00015217,2]
[403700381,1769491840866,-500.0,0.00015217,2]
[403700382,1769491840876,-500.0,0.00015217,2]
[403700383,1769491840886,-500.0,0.00015217,2]
[403700384,1769491840895,-500.0,0.00015217,2]
[403700385,1769491840904,-500.0,0.00015217,2]
[403700386,1769491840914,-500.0,0.00015217,2]
[403700387,1769491840924,-500.0,0.00015217,2]
[403700388,1769491840933,-500.0,0.00015217,2]
[403700389,1769491840943,-500.0,0.00015217,2]
[403700390,1769491840952,-500.0,0.00015217,2]
[403700391,1769491840962,-500.0,0.00015217,2]
[403700392,1769491840971,-500.0,0.00015217,2]
[403700393,1769491840980,-500.0,0.00015217,2]
[403700394,1769491840989,-500.0,0.00015217,2]
[403700395,1769491840999,-500.0,0.00015217,2]
[403700396,1769491841010,-500.0,0.00015217,2]
[403700397,1769491841019,-500.0,0.00015217,2]
[403700398,1769491841028,-500.0,0.00015217,2]
[403700399,1769491841037,-500.0,0.00015217,2]
[403700400,1769491841046,-500.0,0.00015217,2]
[403700401,1769491841055,-500.0,0.00015217,2]
[403700402,1769491841064,-500.0,0.00015217,2]
[403700403,1769491841073,-500.0,0.00015217,2]
[403700404,1769491841083,-500.0,0.00015217,2]